bitfinex/quotes_SOLUSD_20250425
["timestamp","ask_amount","ask_price","bid_price","bid_amount"]
[1745583212486,1.6646,156.24,156.1,72.56235623]
[1745583212704,28.98695623,156.24,156.19,27.32235623]
[1745583212906,20.35,156.27,156.2,27.32235623]
[1745583212907,0.03,156.27,156.2,27.32235623]
[1745583213076,0.03,156.27,156.26,27.32235623]
[1745583213698,0.03,156.27,156.26,28.60179878]
[1745583213894,0.03,156.27,156.26,1.27944255]
[1745583214077,0.03,156.27,156.26,28.60179878]
[1745583214281,0.03,156.27,156.26,1.27944255]
[1745583214498,0.03,156.27,156.19,45.38216157]
[1745583214499,27.35235623,156.27,156.2,1.27962863]
[1745583214700,27.32235623,156.21,156.17,1.27992928]
[1745583214872,27.32235623,156.2,156.17,1.27992928]
[1745583215203,0.03,156.27,156.18,27.32235623]
[1745583215377,0.03,156.27,156.19,28.60229658]
[1745583215576,0.03,156.27,156.19,1.27994035]
[1745583215775,27.35235623,156.27,156.19,1.27994035]
[1745583216083,27.32235623,156.25,156.19,1.27994035]
[1745583216266,0.03,156.27,156.2,1.27986066]
[1745583216469,0.03,156.27,156.25,27.32235623]
[1745583216781,0.03,156.27,156.19,0.14216157]
[1745583216782,0.03,156.27,156.26,28.60195865]
[1745583216987,0.03,156.27,156.26,1.27960242]
[1745583217179,0.03,156.27,156.26,27.32235623]
[1745583217492,0.03,156.27,156.2,7.68144492]
[1745583217669,0.03,156.27,156.21,0.14216157]
[1745583217998,0.03,156.27,156.22,28.60186885]
[1745583218205,27.32235623,156.25,156.18,1.27976924]
[1745583218374,27.32235623,156.2,156.13,1.28008825]
[1745583218704,27.32235623,156.2,156.15,27.32235623]
[1745583218995,20.33,156.27,156.19,27.32235623]
[1745583218996,0.03,156.27,156.19,27.32235623]
[1745583219202,0.03,156.27,156.24,27.32235623]
[1745583219500,0.03,156.27,156.2,1.27983558]
[1745583219808,0.03,156.27,156.23,27.32235623]
[1745583219969,0.03,156.27,156.24,28.60211272]
[1745583220378,0.03,156.27,156.25,27.32235623]
[1745583220579,0.03,156.27,156.18,1.27967517]
[1745583220785,0.03,156.27,156.19,6.40245854]
[1745583220970,0.03,156.27,156.24,27.32235623]
[1745583221171,0.03,156.27,156.26,27.32235623]
[1745583221580,0.03,156.27,156.26,27.4645178]
[1745583221782,0.03,156.27,156.25,1.27960647]
[1745583221970,0.03,156.27,156.24,27.32235623]
[1745583222175,0.03,156.27,156.2,1.27945914]
[1745583222389,0.03,156.27,156.23,27.32235623]
[1745583223397,0.03,156.27,156.26,27.32235623]
[1745583223592,0.03,156.27,156.26,28.7435677]
[1745583223998,0.03,156.27,156.26,47.39321656]
[1745583224181,1.5228,156.44,156.27,18.79181043]
[1745583224381,27.32235623,156.42,156.3,0.14216157]
[1745583224596,1.5228,156.44,156.35,27.32235623]
[1745583224778,27.32235623,156.41,156.35,27.32235623]
[1745583225106,27.32235623,156.41,156.33,1.27863198]
[1745583225107,27.32235623,156.39,156.34,27.32235623]
[1745583225308,1.5228,156.44,156.35,27.32235623]
[1745583225679,27.32235623,156.4,156.35,27.32235623]
[1745583226006,27.32235623,156.37,156.3,1.27884093]
[1745583226188,27.32235623,156.38,156.3,1.27884093]
[1745583226390,27.32235623,156.35,156.3,28.60119716]
[1745583226596,27.32235623,156.34,156.3,1.27884093]
[1745583226788,27.32235623,156.31,156.25,1.27920952]
[1745583226990,27.32235623,156.3,156.25,28.60156575]
[1745583227201,27.32235623,156.31,156.26,27.32235623]
[1745583227402,27.32235623,156.32,156.27,28.60180147]
[1745583227699,25.04396336,156.39,156.27,1.27944524]
[1745583227700,27.32235623,156.34,156.27,1.27944524]
[1745583227900,27.32235623,156.34,156.24,33.72267234]
[1745583227901,0.14216157,156.39,156.25,28.60157665]
[1745583228103,27.32235623,156.32,156.26,27.32235623]
[1745583228308,0.14216157,156.39,156.28,27.32235623]
[1745583228485,6.39519565,156.37,156.25,1.2793796]
[1745583228693,27.32235623,156.29,156.25,1.2793796]
[1745583229006,27.32235623,156.31,156.26,28.60197957]
[1745583229398,27.32235623,156.3,156.24,1.27944049]
[1745583229595,27.32235623,156.3,156.19,20.3]
[1745583229596,27.32235623,156.27,156.2,1.27958]
[1745583229922,27.32235623,156.27,156.22,27.32235623]
[1745583230218,27.32235623,156.32,156.22,27.32235623]
[1745583230513,27.32235623,156.26,156.17,23.69117945]
[1745583230717,19.86,156.33,156.23,27.32235623]
[1745583230887,0.03,156.36,156.32,27.32235623]
[1745583231087,0.03,156.36,156.3,1.27910695]
[1745583231415,0.03,156.36,156.32,27.32235623]
[1745583231605,0.03,156.36,156.34,27.32235623]
[1745583231799,0.03,156.36,156.33,1.27907572]
[1745583232002,0.03,156.36,156.33,28.60143195]
[1745583232333,0.03,156.36,156.35,27.32235623]
[1745583232618,0.03,156.36,156.3,1.27886142]
[1745583233003,27.32235623,156.34,156.26,6.39959042]
[1745583233221,27.32235623,156.34,156.29,27.32235623]
[1745583233998,27.32235623,156.33,156.27,1.27926344]
[1745583234200,27.32235623,156.31,156.27,27.32235623]
[1745583234401,0.03,156.36,156.26,27.32235623]
[1745583234606,27.32235623,156.32,156.27,28.60173942]
[1745583234819,0.03,156.36,156.27,28.60173942]
[1745583235012,27.32235623,156.33,156.27,1.27938319]
[1745583235323,0.03,156.36,156.27,1.27938319]
[1745583235324,27.32235623,156.31,156.27,28.60173942]
[1745583235494,27.32235623,156.3,156.25,27.32235623]
[1745583235700,27.32235623,156.3,156.23,1.27939326]
[1745583235898,27.32235623,156.3,156.25,27.32235623]
[1745583236095,18.64964886,156.31,156.15,6.4038102]
[1745583236301,18.64964886,156.31,156.18,27.38535623]
[1745583236603,27.32235623,156.24,156.19,27.32235623]
[1745583236803,27.32235623,156.22,156.18,0.063]
[1745583237023,27.32235623,156.21,156.18,0.063]
[1745583237204,1.5736,156.29,156.18,0.063]
[1745583237522,27.32235623,156.19,156.18,0.063]
[1745583237823,27.32235623,156.22,156.18,0.063]
[1745583238024,27.32235623,156.21,156.18,0.063]
[1745583238218,27.32235623,156.22,156.18,0.063]
[1745583238421,27.32235623,156.21,156.18,0.063]
[1745583238727,1.5736,156.29,156.2,27.32235623]
[1745583238938,0.03,156.36,156.25,26.0]
[1745583239094,0.03,156.36,156.27,26.0]
[1745583239423,0.03,156.36,156.33,18.64964886]
[1745583239729,0.03,156.36,156.34,1.27839775]
[1745583239903,0.03,156.36,156.35,1.27880539]
[1745583240099,0.03,156.36,156.3,1.27880331]
[1745583240296,0.03,156.36,156.32,27.32235623]
[1745583240706,27.32235623,156.33,156.21,6.40157614]
[1745583241019,27.32235623,156.31,156.26,27.32235623]
[1745583241329,27.32235623,156.27,156.22,1.27937659]
[1745583241618,27.32235623,156.23,156.16,1.27965057]
[1745583241829,23.56,156.3,156.17,27.32235623]
[1745583241999,1.5695,156.31,156.2,26.0]
[1745583242321,27.32235623,156.3,156.21,1.27963303]
[1745583242533,18.67964886,156.36,156.24,27.32235623]
[1745583242694,18.67964886,156.36,156.25,1.27964757]
[1745583242895,27.32235623,156.3,156.25,27.32235623]
[1745583243332,0.03,156.36,156.29,27.32235623]
[1745583243535,0.03,156.36,156.35,27.32235623]
[1745583243723,0.03,156.36,156.33,1.27879302]
[1745583244028,0.03,156.36,156.33,27.32235623]
[1745583244199,0.03,156.36,156.35,27.32235623]
[1745583244824,27.35235623,156.36,156.3,27.32235623]
[1745583245005,27.32235623,156.35,156.3,27.32235623]
[1745583245312,27.32235623,156.34,156.29,27.32235623]
[1745583245495,27.32235623,156.33,156.28,28.60123407]
[1745583245906,0.03,156.36,156.25,7.67931892]
[1745583246125,0.03,156.36,156.29,27.32235623]
[1745583246325,27.32235623,156.34,156.29,27.32235623]
[1745583246505,24.38,156.36,156.25,1.27920854]
[1745583246700,27.32235623,156.4,156.28,27.32235623]
[1745583246894,27.32235623,156.4,156.25,1.27920854]
[1745583246895,27.32235623,156.32,156.25,1.27920854]
[1745583247100,27.32235623,156.32,156.24,20.0]
[1745583247409,24.38,156.36,156.27,27.32235623]
[1745583247710,27.32235623,156.28,156.25,1.27969724]
[1745583247908,27.32235623,156.27,156.24,20.0]
[1745583248617,18.64964886,156.35,156.24,20.0]
[1745583248799,27.32235623,156.32,156.24,20.0]
[1745583249004,27.32235623,156.25,156.24,20.0]
[1745583250926,24.38,156.28,156.24,20.0]
[1745583251223,27.32235623,156.25,156.24,20.0]
[1745583251945,54.64471246,156.25,156.24,20.0]
[1745583252110,49.42854952,156.28,156.24,18.3334]
[1745583252429,54.64471246,156.25,156.24,18.3334]
[1745583252817,54.64471246,156.25,156.2,0.063]
[1745583252818,18.64964886,156.24,156.2,0.063]
[1745583253015,54.64471246,156.21,156.18,0.063]
[1745583253213,54.64471246,156.19,156.18,0.063]
[1745583253727,27.32235623,156.12,156.09,0.063]
[1745583253935,51.70235623,156.12,156.09,0.063]
[1745583254305,79.02471246,156.12,156.09,0.063]
[1745583254622,54.64471246,156.1,156.02,0.063]
[1745583254952,27.32235623,156.06,156.02,0.063]
[1745583255105,27.32235623,156.06,156.02,6.47243468]
[1745583255306,27.32235623,156.03,156.02,0.063]
[1745583255534,27.32235623,156.05,156.02,0.063]
[1745583255701,27.32235623,156.04,156.02,0.063]
[1745583256417,24.4,156.11,156.02,0.063]
[1745583256619,24.4,156.11,156.06,27.32235623]
[1745583256827,24.4,156.11,156.03,1.28140396]
[1745583257128,27.32235623,156.05,156.02,0.063]
[1745583257504,24.4,156.11,156.02,0.063]
[1745583257505,27.32235623,156.03,156.02,0.063]
[1745583257913,27.32235623,156.04,156.02,0.063]
[1745583258130,27.32235623,156.03,156.02,0.063]
[1745583259132,27.32235623,156.04,156.02,0.063]
[1745583259329,6.40444952,156.15,156.02,0.063]
[1745583259330,1.5517,156.19,156.03,53.00403426]
[1745583259632,27.32235623,156.14,156.04,18.79181043]
[1745583259832,27.32235623,156.11,156.06,27.32235623]
[1745583260029,27.32235623,156.09,156.04,27.32235623]
[1745583260338,27.32235623,156.05,156.02,0.063]
[1745583260640,27.32235623,156.03,156.02,0.063]
[1745583261013,27.32235623,156.04,156.02,0.063]
[1745583261231,27.32235623,156.03,156.02,0.063]
[1745583262022,24.4,156.07,156.02,0.063]
[1745583262218,27.32235623,156.03,156.02,0.063]
[1745583262930,27.32235623,156.04,156.02,0.063]
[1745583263142,27.32235623,156.03,156.02,0.063]
[1745583263638,24.4,156.07,156.02,0.063]
[1745583263834,51.72235623,156.07,156.02,27.38535623]
[1745583264013,24.4,156.07,156.02,0.063]
[1745583264208,27.32235623,156.03,156.02,0.063]
[1745583264515,27.32235623,156.04,156.02,0.063]
[1745583265116,24.4,156.07,156.02,27.38535623]
[1745583265117,27.32235623,156.06,156.02,27.38535623]
[1745583265326,27.32235623,156.04,156.02,0.063]
[1745583265522,27.32235623,156.05,156.02,0.063]
[1745583265820,24.4,156.07,156.03,27.32235623]
[1745583266029,24.4,156.07,156.02,0.063]
[1745583266030,27.32235623,156.08,156.02,0.063]
[1745583266213,27.32235623,156.05,156.02,0.063]
[1745583266420,27.32235623,156.06,156.02,0.063]
[1745583266616,27.32235623,156.05,156.02,0.063]
[1745583267447,27.32235623,156.04,156.02,0.063]
[1745583267749,27.32235623,156.03,156.02,0.063]
[1745583267943,27.32235623,156.04,156.02,0.063]
[1745583268740,27.32235623,156.05,156.02,0.063]
[1745583268935,25.1972385,156.12,156.02,27.38535623]
[1745583268936,27.32235623,156.07,156.02,27.38535623]
[1745583269252,23.72,156.13,156.06,27.32235623]
[1745583269753,27.32235623,156.12,156.07,27.32235623]
[1745583269930,27.32235623,156.1,156.06,27.32235623]
[1745583270130,27.32235623,156.09,156.04,27.32235623]
[1745583270443,23.72,156.13,156.06,27.32235623]
[1745583270444,27.32235623,156.1,156.06,27.32235623]
[1745583270650,23.72,156.13,156.08,27.32235623]
[1745583270853,27.35235623,156.16,156.08,27.32235623]
[1745583271147,0.03,156.16,156.12,27.32235623]
[1745583271346,0.03,156.16,156.09,1.2809715]
[1745583271553,0.03,156.16,156.13,27.32235623]
[1745583272742,0.03,156.16,156.14,27.32235623]
[1745583273051,0.03,156.16,156.09,7.68720245]
[1745583273052,0.03,156.16,156.15,27.32235623]
[1745583273351,0.03,156.16,156.09,7.68720245]
[1745583273352,27.35235623,156.16,156.09,7.68720245]
[1745583273527,27.32235623,156.15,156.08,7.68778198]
[1745583273851,0.03,156.16,156.08,35.01013821]
[1745583274159,0.03,156.16,156.14,27.32235623]
[1745583274366,0.03,156.16,156.13,27.32235623]
[1745583274734,0.03,156.16,156.08,7.68778198]
[1745583274735,27.35235623,156.16,156.08,7.68778198]
[1745583274962,0.03,156.16,156.12,27.32235623]
[1745583275159,0.03,156.16,156.03,1.28109143]
[1745583275160,27.32235623,156.13,156.03,1.28109143]
[1745583275348,27.32235623,156.11,156.07,27.32235623]
[1745583275542,27.32235623,156.13,156.08,27.32235623]
[1745583275932,27.35235623,156.16,156.04,36.40855856]
[1745583276141,27.32235623,156.12,156.08,27.32235623]
[1745583276842,27.32235623,156.12,156.07,27.32235623]
[1745583277046,27.32235623,156.12,156.08,27.32235623]
[1745583277346,27.35235623,156.16,156.04,7.68992635]
[1745583277530,27.32235623,156.11,156.07,27.32235623]
[1745583277730,27.32235623,156.12,156.07,27.32235623]
[1745583278169,27.32235623,156.11,156.03,6.4090239]
[1745583278350,27.32235623,156.09,156.05,27.32235623]
[1745583278545,27.32235623,156.09,156.03,6.4090239]
[1745583278546,27.32235623,156.08,156.03,27.32235623]
[1745583278868,27.32235623,156.06,156.02,33.79474123]
[1745583279066,27.32235623,156.04,156.02,0.063]
[1745583279247,27.32235623,156.03,156.02,0.063]
[1745583279764,27.32235623,156.04,156.02,0.063]
[1745583280760,6.2034,156.11,156.02,27.38535623]
[1745583280761,27.32235623,156.07,156.02,27.38535623]
[1745583281254,27.32235623,156.05,156.02,0.063]
[1745583281463,6.2034,156.11,156.03,27.32235623]
[1745583281668,27.32235623,156.09,156.05,27.32235623]
[1745583282149,27.32235623,156.08,156.04,27.32235623]
[1745583282342,27.32235623,156.07,156.03,33.73125495]
[1745583282541,27.32235623,156.08,156.04,27.32235623]
[1745583282764,27.32235623,156.07,156.03,27.32235623]
[1745583282956,27.32235623,156.06,156.02,0.063]
[1745583283268,27.32235623,156.04,156.02,0.063]
[1745583283641,27.32235623,156.05,156.02,0.063]
[1745583283838,27.32235623,156.06,156.02,0.063]
[1745583284044,27.32235623,156.06,156.02,27.38535623]
[1745583284255,27.32235623,156.06,156.02,0.063]
[1745583284456,27.32235623,156.07,156.03,27.32235623]
[1745583284647,23.0,156.12,156.05,27.32235623]
[1745583284842,27.32235623,156.09,156.05,27.32235623]
[1745583285044,27.32235623,156.08,156.04,27.32235623]
[1745583285242,23.0,156.12,156.03,1.28149335]
[1745583285467,27.32235623,156.1,156.06,27.32235623]
[1745583285668,27.32235623,156.09,156.04,27.32235623]
[1745583285973,27.32235623,156.06,156.02,0.063]
[1745583286160,27.32235623,156.05,156.02,0.063]
[1745583287262,27.32235623,156.07,156.02,27.38535623]
[1745583287472,27.32235623,156.06,156.02,27.38535623]
[1745583287766,27.32235623,156.07,156.03,27.32235623]
[1745583288059,23.0,156.12,156.03,6.40894224]
[1745583288238,27.32235623,156.07,156.03,27.32235623]
[1745583288430,27.32235623,156.04,156.02,0.063]
[1745583288844,27.32235623,156.03,156.02,0.063]
[1745583289056,27.32235623,156.04,156.02,0.063]
[1745583289996,27.32235623,156.07,156.02,0.063]
[1745583290288,27.32235623,156.04,156.02,0.063]
[1745583290860,27.32235623,156.03,156.02,0.063]
[1745583291252,27.32235623,156.08,156.02,0.063]
[1745583291458,27.32235623,156.04,156.02,0.063]
[1745583291661,27.32235623,156.03,156.02,0.063]
[1745583292763,27.32235623,156.05,156.02,0.063]
[1745583292965,27.32235623,156.08,156.02,0.063]
[1745583293164,27.32235623,156.04,156.02,0.063]
[1745583293673,27.32235623,156.03,156.02,0.063]
[1745583294777,27.32235623,156.04,156.02,0.063]
[1745583295974,27.32235623,156.08,156.02,0.063]
[1745583296174,27.32235623,156.03,156.02,0.063]
[1745583300472,79.70339264,156.03,155.99,0.063]
[1745583300785,54.64471246,156.0,155.95,0.063]
[1745583300995,27.32235623,155.96,155.95,0.063]
[1745583301682,48.94235623,155.96,155.95,0.063]
[1745583302188,6.3239,156.05,155.95,0.063]
[1745583302402,27.32235623,155.98,155.95,0.063]
[1745583302691,27.32235623,155.96,155.95,0.063]
[1745583302881,27.32235623,155.97,155.95,0.063]
[1745583303194,21.62,156.02,155.96,27.32235623]
[1745583303364,48.94235623,156.02,155.98,27.32235623]
[1745583303570,27.32235623,156.0,155.95,27.38535623]
[1745583303777,21.62,156.02,155.97,27.32235623]
[1745583304101,21.62,156.02,155.98,27.32235623]
[1745583304102,48.94235623,156.02,155.98,27.32235623]
[1745583304394,48.94235623,156.02,155.95,6.47514791]
[1745583304395,27.32235623,156.01,155.95,6.47514791]
[1745583304602,27.32235623,156.0,155.96,27.32235623]
[1745583304823,27.32235623,155.97,155.95,0.063]
[1745583305099,27.32235623,155.96,155.95,0.063]
[1745583307268,45.97200509,155.96,155.95,0.063]
[1745583308391,27.32235623,155.96,155.95,0.063]
[1745583308612,18.64964886,155.95,155.93,0.063]
[1745583308801,75.74687403,155.94,155.93,0.063]
[1745583308980,94.39652289,155.94,155.9,0.063]
[1745583309181,27.32235623,155.91,155.9,0.063]
[1745583309571,46.11416666,155.91,155.9,0.063]
[1745583309979,27.32235623,155.91,155.9,0.063]
[1745583310178,45.97200509,155.91,155.9,0.063]
[1745583310608,27.32235623,155.91,155.9,0.063]
[1745583310787,20.96,155.94,155.9,0.063]
[1745583310994,27.32235623,155.91,155.9,0.063]
[1745583312780,45.97200509,155.91,155.9,0.063]
[1745583313396,27.32235623,155.91,155.9,0.063]
[1745583315305,45.97200509,155.91,155.9,0.063]
[1745583315480,27.32235623,155.91,155.9,0.063]
[1745583316693,45.97200509,155.91,155.9,0.063]
[1745583317084,203.22911618,155.95,155.9,0.063]
[1745583317085,200.1,155.95,155.9,0.063]
[1745583317498,27.32235623,155.91,155.9,0.063]
[1745583318692,200.1,155.95,155.9,0.063]
[1745583318890,27.32235623,155.92,155.9,0.063]
[1745583319391,18.54091671,155.91,155.9,0.063]
[1745583320311,37.33272714,155.91,155.9,0.063]
[1745583320502,0.14216157,155.9,155.86,0.063]
[1745583320807,18.54091671,155.87,155.86,0.063]
[1745583321393,27.41410626,155.87,155.86,0.063]
[1745583322004,27.41410626,155.88,155.86,0.063]
[1745583322189,20.32,155.89,155.86,27.47710626]
[1745583322384,20.32,155.89,155.87,27.41410626]
[1745583322694,220.42,155.95,155.88,27.41410626]
[1745583322890,220.42,155.95,155.92,27.41410626]
[1745583323093,20.32,155.95,155.94,27.41410626]
[1745583323389,27.41410626,156.0,155.94,27.41410626]
[1745583323592,27.41410626,155.99,155.87,6.5456]
[1745583323811,20.32,156.01,155.96,27.41410626]
[1745583323987,27.41410626,156.0,155.91,16.03429671]
[1745583324205,47.73410626,156.01,155.96,27.41410626]
[1745583324524,20.32,156.01,155.97,27.41410626]
[1745583324925,47.73410626,156.01,155.97,27.41410626]
[1745583325110,27.41410626,156.0,155.96,27.41410626]
[1745583325417,47.73410626,156.01,155.97,27.41410626]
[1745583325607,27.41410626,156.0,155.96,27.41410626]
[1745583325795,27.41410626,155.99,155.92,6.4135454]
[1745583325999,27.41410626,155.98,155.94,27.41410626]
[1745583326199,27.41410626,156.0,155.96,27.41410626]
[1745583326423,27.41410626,156.0,155.95,27.41410626]
[1745583326926,27.41410626,155.96,155.89,6.41477965]
[1745583327097,27.41410626,156.0,155.87,6.41560274]
[1745583327098,27.41410626,155.93,155.87,6.41560274]
[1745583327293,27.41410626,155.93,155.89,27.41410626]
[1745583327515,27.41410626,155.94,155.9,27.41410626]
[1745583327715,27.41410626,155.98,155.93,27.41410626]
[1745583327915,27.41410626,155.96,155.92,27.41410626]
[1745583328320,27.41410626,155.96,155.92,33.82749531]
[1745583328720,27.41410626,155.98,155.93,27.41410626]
[1745583328912,27.41410626,156.0,155.96,27.41410626]
[1745583329510,47.73410626,156.01,155.97,27.41410626]
[1745583329822,20.32,156.01,155.98,27.41410626]
[1745583330013,20.32,156.01,155.98,33.82510452]
[1745583330213,20.32,156.01,156.0,27.41410626]
[1745583330819,200.18,156.05,156.0,27.41410626]
[1745583331005,200.18,156.05,156.02,27.41410626]
[1745583331705,200.18,156.05,156.01,27.41410626]
[1745583332335,227.59410626,156.05,156.01,27.41410626]
[1745583332702,200.18,156.05,156.01,27.41410626]
[1745583332897,200.18,156.05,155.93,1.28199563]
[1745583332898,27.41410626,156.03,155.94,16.0315649]
[1745583333113,27.41410626,156.01,155.94,6.41272284]
[1745583333332,27.41410626,156.0,155.96,27.41410626]
[1745583334327,27.41410626,156.0,155.95,27.41410626]
[1745583334506,27.41410626,155.99,155.95,27.41410626]
[1745583335231,27.41410626,156.0,155.96,27.41410626]
[1745583335429,27.41410626,156.01,155.97,27.41410626]
[1745583336132,27.41410626,155.98,155.91,33.82806302]
[1745583336439,19.64,156.0,155.93,27.41410626]
[1745583336618,27.41410626,155.96,155.92,27.41410626]
[1745583336821,47.05410626,156.0,155.91,27.41410626]
[1745583336822,27.41410626,155.95,155.91,27.41410626]
[1745583337226,27.41410626,155.95,155.87,22.4546096]
[1745583337609,18.64964886,155.99,155.9,27.41410626]
[1745583337936,19.64,156.0,155.95,27.41410626]
[1745583338117,47.05410626,156.0,155.96,27.41410626]
[1745583338310,27.41410626,155.98,155.92,6.4135454]
[1745583338517,27.41410626,155.93,155.88,27.41410626]
[1745583338730,27.41410626,155.92,155.87,33.829709]
[1745583338926,27.41410626,155.9,155.86,0.063]
[1745583339225,27.41410626,155.91,155.87,27.41410626]
[1745583339614,27.41410626,155.92,155.88,27.41410626]
[1745583339809,18.64964886,155.98,155.89,27.41410626]
[1745583339810,27.41410626,155.93,155.89,27.41410626]
[1745583340336,27.41410626,155.93,155.89,33.82884755]
[1745583341036,27.41410626,155.93,155.89,6.41474129]
[1745583341333,27.41410626,155.93,155.89,33.82884755]
[1745583341534,27.41410626,155.96,155.92,27.41410626]
[1745583342031,27.41410626,155.97,155.93,27.41410626]
[1745583342225,19.64,156.0,155.96,33.82582434]
[1745583342536,200.18,156.05,155.99,27.41410626]
[1745583342836,227.59410626,156.05,156.0,27.41410626]
[1745583343012,27.41410626,156.03,155.96,22.44146929]
[1745583343337,27.41410626,156.04,155.99,27.41410626]
[1745583343716,27.41410626,156.04,156.0,27.41410626]
[1745583343916,200.18,156.05,156.0,27.41410626]
[1745583344132,227.59410626,156.05,156.01,27.41410626]
[1745583344437,19.66,156.06,156.03,27.41410626]
[1745583344641,47.07410626,156.06,156.01,33.82379139]
[1745583344827,19.66,156.06,156.02,27.41410626]
[1745583345440,19.66,156.06,156.03,27.41410626]
[1745583345743,18.59,156.13,156.05,27.41410626]
[1745583345916,27.41410626,156.12,156.08,27.41410626]
[1745583346225,18.59,156.13,156.09,27.41410626]
[1745583346413,46.00410626,156.13,156.09,27.41410626]
[1745583346616,27.41410626,156.11,156.07,27.41410626]
[1745583346814,27.41410626,156.12,156.07,27.41410626]
[1745583347020,27.41410626,156.11,156.06,27.41410626]
[1745583347238,27.41410626,156.1,156.05,27.41410626]
[1745583347431,27.41410626,156.08,156.01,6.40984552]
[1745583347740,27.41410626,156.09,156.05,27.41410626]
[1745583347931,27.41410626,156.08,156.04,27.41410626]
[1745583348136,27.41410626,156.09,156.04,27.41410626]
[1745583348315,27.41410626,156.1,156.05,33.82230305]
[1745583348716,27.41410626,156.1,156.05,27.41410626]
[1745583348942,27.41410626,156.09,156.05,27.41410626]
[1745583349346,27.41410626,156.08,156.04,27.41410626]
[1745583349723,27.41410626,156.05,155.95,16.03000037]
[1745583349921,27.41410626,156.04,155.99,27.41410626]
[1745583350129,27.41410626,156.03,155.99,27.41410626]
[1745583350332,27.41410626,156.02,155.98,27.41410626]
[1745583350536,27.41410626,156.03,155.98,33.82513152]
[1745583350841,27.41410626,156.02,155.97,6.4113549]
[1745583351148,27.41410626,156.02,155.98,27.41410626]
[1745583351318,27.41410626,156.02,155.97,33.82546116]
[1745583351518,27.41410626,156.0,155.96,27.41410626]
[1745583351721,27.41410626,155.97,155.92,27.41410626]
[1745583352145,27.41410626,155.98,155.93,27.41410626]
[1745583352455,27.41410626,155.94,155.89,27.41410626]
[1745583352630,27.41410626,155.94,155.87,6.41560274]
[1745583352815,19.0,155.97,155.9,27.41410626]
[1745583353150,27.41410626,155.95,155.9,27.41410626]
[1745583354221,27.41410626,155.95,155.9,33.82844948]
[1745583354651,27.41410626,155.94,155.9,33.82844948]
[1745583354863,19.0,155.97,155.93,27.41410626]
[1745583355223,46.41410626,155.97,155.93,27.41410626]
[1745583355526,46.41410626,155.97,155.92,27.41410626]
[1745583355718,27.41410626,155.96,155.9,6.41434322]
[1745583355921,27.41410626,155.95,155.87,22.45380108]
[1745583356121,27.41410626,155.96,155.91,27.41410626]
[1745583356341,19.0,155.97,155.91,27.41410626]
[1745583356545,27.41410626,155.96,155.92,27.41410626]
[1745583356934,19.0,155.97,155.94,27.41410626]
[1745583357145,27.41410626,155.96,155.87,22.45380108]
[1745583357350,27.41410626,155.94,155.9,27.41410626]
[1745583357549,27.41410626,155.94,155.87,6.41560274]
[1745583357843,27.41410626,155.95,155.9,27.41410626]
[1745583358146,27.41410626,155.94,155.87,6.41560274]
[1745583358363,27.41410626,155.94,155.9,27.41410626]
[1745583358533,27.41410626,155.95,155.9,27.41410626]
[1745583359041,27.41410626,155.95,155.91,27.41410626]
[1745583359247,19.0,155.97,155.93,27.41410626]
[1745583359446,37.52913801,155.97,155.93,18.52913801]
[1745583359752,18.52913801,155.96,155.87,22.4546096]
[1745583359949,18.52913801,155.96,155.92,18.52913801]
[1745583360259,18.52913801,156.0,155.89,18.52913801]
[1745583360260,18.52913801,155.94,155.89,18.52913801]
[1745583360464,18.52913801,155.91,155.86,0.063]
[1745583360630,18.52913801,155.91,155.87,18.52913801]
[1745583360832,18.52913801,155.89,155.86,0.063]
[1745583361435,18.52913801,155.87,155.86,0.063]
[1745583362055,55.85008645,155.87,155.83,0.063]
[1745583362348,18.64964886,155.83,155.82,0.9330288]
[1745583362527,18.64964886,155.83,155.74,6.48394454]
[1745583362528,0.14216157,155.82,155.74,6.48394454]
[1745583362729,18.52913801,155.76,155.74,0.063]
[1745583362928,18.52913801,155.75,155.74,0.063]
[1745583363127,19.02,155.76,155.74,0.063]
[1745583363351,18.52913801,155.75,155.74,0.063]
[1745583363550,19.02,155.76,155.74,0.063]
[1745583363731,18.52913801,155.75,155.74,0.093]
[1745583364662,19.02,155.76,155.74,0.093]